{"text_format":"1","workbook":"xlsx","n_sheets":5,"sheets":["基本設定","単独表紙①","単独表紙②","単独表紙③","単独表紙④"],"not_rendered":{"charts":0,"images":0,"macros":1,"external_links":0,"defined_names":25,"comments":2,"pivot_tables":0},"unopened":[],"bounds":{"document_bytes":16777216,"sheet_cells":100000,"rows_first":2000,"rows_last":500,"rows_between":2000,"halvings":0,"cell_chars":16384,"cell_head_chars":4096},"cells_cut":0,"cells_raw":0,"read":"whole","date_system":"1900"}

{"sheet":"基本設定","index":0,"n_rows":54,"n_cols":8,"rows_kept":54,"cut":false,"hidden":false,"merged":[[0,1,0,2],[14,1,14,2],[0,4,0,5],[6,4,6,5]]}
[null,"【基本情報】",null,null,"【消費税情報】",null,"注：赤字は必須項目"]
[]
[null,"社名","例：(株)種村建設",null,"調整消費税額",null,"単独表紙①の消費税を調整"]
[null,"住所","例：新潟県南魚沼市水尾４１７",null,"消費税率",10]
[null,"代表者","例：代表取締役 種村成徳",null,"税処理",1,null,{"$f":"IF(税処理=1,\"税抜処理\",\"税込処理\")","v":"税抜処理"}]
[null,"電話","例：025-779-2311"]
[]
[null,"銀行名","例：第四銀行"]
[null,"支店名","例：六日町支店"]
[null,"口座名義","例：カ.タネムラケンセツ"]
[null,"口座種別","２．当座"]
[null,"口座番号","例：121813"]
[]
[]
[null,"【利用方法】"]
[null,"１．基本情報の入力"]
[null,"　　まず、基本情報を入力してください。各書式に反映します。"]
[null,"　　赤字の所は必須項目なので、入力しないと印刷できません。"]
[]
[null,"２．消費税情報額"]
[null,"　　①調整消費税額"]
[null,"　　　特にコンピューター処理されている場合、入力が必要になる場合があります。"]
[null,{"$f":"\"　　　この書式は、各税抜き明細額の合計に一括して\" & DBCS(税率) & \"％を掛ける書式になっています。\"","v":"　　　この書式は、各税抜き明細額の合計に一括して１０％を掛ける書式になっています。"}]
[null,"　　　ソフトによっては、商品1ヶ毎に消費税を掛けている場合がありますので、"]
[null,"　　　このような場合、消費税額が合わなくなります。調整消費税額覧に、貴社の"]
[null,"　　　消費税額を入力してください。こちらが優先で表示されます。"]
[]
[null,"　　②消費税率"]
[null,{"$f":"\"　　　消費税率は、現在\" & DBCS(税率) & \"％の設定ですが、税率が変更になった場合は、ここを変更してください。\"","v":"　　　消費税率は、現在１０％の設定ですが、税率が変更になった場合は、ここを変更してください。"}]
[null,"　　　表紙の消費税額は、消費税率を参照しているので、自動的に変更されます。"]
[]
[null,"　　③税処理"]
[null,"　　　税抜処理と税込処理の２パターンの設定が出来ます。"]
[null,"　　　[税処理]=1は、全て「税抜き」で入力して、表紙で一括消費税額を計算します。"]
[null,"　　　[税処理]=2は、全て「税込み」で入力して、表紙では消費税を計算しません。"]
[null,"　　　税処理を変更する事により、表紙及び明細の書式も変更（「金額(税抜)」･「金額(税込)」）されます。"]
[]
[null,"３．書式情報"]
[null,"　　 「単独表紙」(表紙のみの入力)"]
[null,"　　　明細書が不要の業者、又は、明細書を自社の書式で代用される業者用。"]
[null,"　　　但し、必ず明細書は、現場毎に出力し、２枚用意する事が必須条件です。"]
[null,"　　　直接、表紙(正)に入力します。入力項目は、「日付欄(必須)」「工事番号」「工事名」「金額」。"]
[null,"　　　必要に応じて「備考･摘要」を入力します。"]
[null,"　　　合計欄は、計算式が入力されていますので自動計算します。また、表紙(貴社控･現場控)は、入力不要です。"]
[null,"　　　又、１３現場以上請求がある場合は、単独表紙②、必要に応じて③④に入力して下さい。"]
[]
[null,"４．その他"]
[null,"　　①各シートは、念のため保護されています。"]
[null,"　　　従って、必要に応じて保護を解除し、訂正してください。"]
[null,"　　　パスワードは、設定していません。"]
[null,"　　②簡単なマクロが設定されていますが、こちらもパスワードは設定していません。"]
[null,"　　　適宜変更して、使用してください。"]
[null,"　　　シートのタブ名は変更しないでください。マクロを修正しないとエラーが発生します。"]
[null,"　　"]

{"sheet":"単独表紙①","index":1,"n_rows":179,"n_cols":57,"rows_kept":179,"cut":false,"hidden":false,"merged":[[4,40,6,44],[4,45,6,48],[96,40,98,44],[96,45,98,48],[129,45,132,54],[129,29,132,34],[178,1,181,18],[178,19,181,27],[138,29,181,54],[174,1,177,6],[174,7,177,18],[174,19,177,27],[166,7,169,18],[166,19,169,27],[146,1,149,6],[146,7,149,18],[170,1,173,6],[170,7,173,18],[170,19,173,27],[162,1,165,6],[162,7,165,18],[162,19,165,27],[166,1,169,6],[134,29,136,54],[158,1,161,6],[158,7,161,18],[158,19,161,27],[90,51,91,54],[142,1,145,6],[142,7,145,18],[142,19,145,27],[138,1,141,6],[138,7,141,18],[138,19,141,27],[125,29,128,34],[125,35,128,54],[130,1,133,6],[130,7,133,18],[130,19,133,27],[126,1,129,6],[126,7,129,18],[126,19,129,27],[134,1,137,6],[134,7,137,18],[134,19,137,27],[121,1,124,9],[121,10,124,23],[121,29,124,34],[117,1,120,9],[111,29,115,54],[129,35,132,44],[150,1,153,6],[150,7,153,18],[150,19,153,27],[154,1,157,6],[154,7,157,18],[154,19,157,27],[117,10,120,23],[113,1,116,9],[113,10,116,23],[116,29,119,54],[121,35,124,44],[121,45,124,54],[146,19,149,27],[100,1,101,10],[74,7,77,18],[78,1,81,6],[78,7,81,18],[100,29,101,54],[104,1,107,9],[104,10,107,23],[103,29,106,54],[107,29,110,54],[96,52,98,54],[96,49,98,51],[82,1,85,6],[109,1,112,9],[109,10,112,23],[82,7,85,18],[86,19,89,27],[94,19,97,32],[95,1,98,11],[95,12,98,13],[86,1,89,18],[74,1,77,6],[70,19,73,27],[78,19,81,27],[66,1,69,6],[66,7,69,18],[70,1,73,6],[70,7,73,18],[74,19,77,27],[66,19,69,27],[34,19,37,27],[38,19,41,27],[42,19,45,27],[46,19,49,27],[50,19,53,27],[34,7,37,18],[38,1,41,6],[38,7,41,18],[42,1,45,6],[42,7,45,18],[46,1,49,6],[46,7,49,18],[54,19,57,27],[58,1,61,6],[58,7,61,18],[58,19,61,27],[50,1,53,6],[50,7,53,18],[54,1,57,6],[54,7,57,18],[62,19,65,27],[62,1,65,6],[62,7,65,18],[21,1,24,9],[25,1,28,9],[11,29,14,54],[15,29,18,54],[19,29,23,54],[24,29,27,54],[29,45,32,54],[12,10,15,23],[17,10,20,23],[21,10,24,23],[29,1,32,9],[25,24,28,24],[0,53,1,54],[4,56,6,59],[82,19,85,27],[45,29,89,54],[4,52,6,54],[25,10,28,23],[29,10,32,23],[29,29,32,34],[33,29,36,34],[37,29,40,34],[42,29,44,54],[3,1,6,11],[8,1,9,10],[8,29,9,54],[2,19,5,32],[3,12,6,13],[4,49,6,51],[33,35,36,54],[37,35,40,44],[37,45,40,54],[34,1,37,6],[29,35,32,44],[12,1,15,9],[17,1,20,9]]}
[null,null,null,null,null,null,null,null,null,null,null,null,null,null,null,null,null,null,null,null,null,null,null,null,null,null,null,null,null,null,null,null,null,null,null,null,null,null,null,null,null,null,null,null,null,null,null,null,null,null,null,null,null,{"$f":"\"1/\"&IF(小計4>0,4,IF(小計3>0,3,IF(小計2>0,2,1)))&\"\"","v":"1/1"}]
[]
[null,null,null,null,null,null,null,null,null,null,null,null,null,null,null,null,null,null,null,"請　求　書 (正)"]
[null,"株 式 会 社 種 村 建 設",null,null,null,null,null,null,null,null,null,null,"御中"]
[null,null,null,null,null,null,null,null,null,null,null,null,null,null,null,null,null,null,null,null,null,null,null,null,null,null,null,null,null,null,null,null,null,null,null,null,null,null,null,null,"請求年月日",null,null,null,null,null,null,null,null,null,null,null,null,null,null,null,"単独表紙"]
[]
[]
[]
[null,"下記の通りご請求します。",null,null,null,null,null,null,null,null,null,null,null,null,null,null,null,null,null,null,null,null,null,null,null,null,null,null,null,"住所･社名･電話"]
[]
[null,null,null,null,null,null,null,null,null,null,null,null,null,null,null,null,null,null,null,null,null,null,null,null,null,null,null,null,null,"\n\n　　　　　　　　　新潟県南魚沼市水尾４１７\n\n　　　　　　　　　株式会社 種 村 建 設\n\n　　　　　　　　　代表取締役　並 木 成 德"]
[null,null,null,null,null,null,null,null,null,null,null,null,null,null,null,null,null,null,null,null,null,null,null,null,null,null,null,null,null,{"$f":"住所","v":"例：新潟県南魚沼市水尾４１７"}]
[null,"請求金額",null,null,null,null,null,null,null,null,{"$f":"K30","v":0}]
[]
[]
[null,null,null,null,null,null,null,null,null,null,null,null,null,null,null,null,null,null,null,null,null,null,null,null,null,null,null,null,null,{"$f":"社名","v":"例：(株)種村建設"}]
[]
[null,"前月繰越額",null,null,null,null,null,null,null,null,0]
[]
[null,null,null,null,null,null,null,null,null,null,null,null,null,null,null,null,null,null,null,null,null,null,null,null,null,null,null,null,null,{"$f":"代表者","v":"例：代表取締役 種村成徳"}]
[]
[null,"当月請求額",null,null,null,null,null,null,null,null,{"$f":"IF(T87=0,0,IF(小計4>0,小計4+小計3+小計2+T87,IF(小計3>0,小計3+小計2+T87,IF(小計2>0,小計2+T87,T87))))","v":0}]
[]
[]
[null,null,null,null,null,null,null,null,null,null,null,null,null,null,null,null,null,null,null,null,null,null,null,null,null,null,null,null,null,{"$f":"電話","v":"例：025-779-2311"}]
[null,{"$f":"\"消費税額(\" & 税率 & \"%)\"","v":"消費税額(10%)"},null,null,null,null,null,null,null,null,{"$f":"IF(税処理=2,0,IF(K22=\"\",0,IF(調整消費税>0,調整消費税,ROUND(K22*税率/100,0))))","v":0},null,null,null,null,null,null,null,null,null,null,null,null,null,{"$f":"IF(調整消費税>0,\"*\",\"\")","v":""}]
[]
[]
[]
[null,"今回請求額",null,null,null,null,null,null,null,null,{"$f":"K18+K22+K26","v":0},null,null,null,null,null,null,null,null,null,null,null,null,null,null,null,null,null,null,"取引銀行",null,null,null,null,null,{"$f":"銀行名","v":"例：第四銀行"},null,null,null,null,null,null,null,null,null,{"$f":"支店名","v":"例：六日町支店"}]
[]
[]
[]
[null,null,null,null,null,null,null,null,null,null,null,null,null,null,null,null,null,null,null,null,null,null,null,null,null,null,null,null,null,"口座名義",null,null,null,null,null,{"$f":"口座名義","v":"例：カ.タネムラケンセツ"}]
[null,"工事番号",null,null,null,null,null,"工事名",null,null,null,null,null,null,null,null,null,null,null,{"$f":"\"金額(\" & IF(税処理=2,\"税込み\",\"税抜き\")&\")\"","v":"金額(税抜き)"}]
[]
[]
[null,null,null,null,null,null,null,null,null,null,null,null,null,null,null,null,null,null,null,null,null,null,null,null,null,null,null,null,null,"口座番号",null,null,null,null,null,{"$f":"口座種別","v":"２．当座"},null,null,null,null,null,null,null,null,null,{"$f":"口座番号","v":"例：121813"}]
[]
[]
[]
[]
[null,null,null,null,null,null,null,null,null,null,null,null,null,null,null,null,null,null,null,null,null,null,null,null,null,null,null,null,null,"備     考 ・ 通 信 欄"]
[]
[]
[]
[]
[]
[]
[]
[]
[]
[]
[]
[]
[]
[]
[]
[]
[]
[]
[]
[]
[]
[]
[]
[]
[]
[]
[]
[]
[]
[]
[]
[]
[]
[]
[]
[]
[]
[]
[]
[]
[]
[]
[]
[null,"合　　　　　計",null,null,null,null,null,null,null,null,null,null,null,null,null,null,null,null,null,{"$f":"SUM(T39:T83)","v":0}]
[]
[]
[]
[null,null,null,null,null,null,null,null,null,null,null,null,null,null,null,null,null,null,null,null,null,null,null,null,null,null,null,null,null,null,null,null,null,null,null,null,null,null,null,null,null,null,null,null,null,null,null,null,null,null,null,"Ver.2.8.5"]
[]
[]
[]
[null,null,null,null,null,null,null,null,null,null,null,null,null,null,null,null,null,null,null,"請　求　書 (貴社控)"]
[null,"株 式 会 社 種 村 建 設",null,null,null,null,null,null,null,null,null,null,"御中"]
[null,null,null,null,null,null,null,null,null,null,null,null,null,null,null,null,null,null,null,null,null,null,null,null,null,null,null,null,null,null,null,null,null,null,null,null,null,null,null,null,"請求年月日",null,null,null,null,{"$f":"IF(AT5=\"\",\"\",AT5)","v":""},null,null,null,{"$f":"IF(AX5=\"\",\"\",AX5)","v":""},null,null,{"$f":"IF(BA5=\"\",\"\",BA5)","v":""}]
[]
[]
[]
[null,"下記の通りご請求します。",null,null,null,null,null,null,null,null,null,null,null,null,null,null,null,null,null,null,null,null,null,null,null,null,null,null,null,"住所･社名･電話"]
[]
[null,null,null,null,null,null,null,null,null,null,null,null,null,null,null,null,null,null,null,null,null,null,null,null,null,null,null,null,null,{"$f":"IF(AD11=\"\",\"\",AD11)","v":"\n\n　　　　　　　　　新潟県南魚沼市水尾４１７\n\n　　　　　　　　　株式会社 種 村 建 設\n\n　　　　　　　　　代表取締役　並 木 成 德"}]
[null,null,null,null,null,null,null,null,null,null,null,null,null,null,null,null,null,null,null,null,null,null,null,null,null,null,null,null,null,{"$f":"IF(AD12=\"\",\"\",AD12)","v":"例：新潟県南魚沼市水尾４１７"}]
[null,"請求金額",null,null,null,null,null,null,null,null,{"$f":"K13","v":0}]
[]
[]
[null,null,null,null,null,null,null,null,null,null,null,null,null,null,null,null,null,null,null,null,null,null,null,null,null,null,null,null,null,{"$f":"IF(AD16=\"\",\"\",AD16)","v":"例：(株)種村建設"}]
[]
[null,"前月繰越額",null,null,null,null,null,null,null,null,{"$f":"K18","v":0}]
[]
[null,null,null,null,null,null,null,null,null,null,null,null,null,null,null,null,null,null,null,null,null,null,null,null,null,null,null,null,null,{"$f":"IF(AD20=\"\",\"\",AD20)","v":"例：代表取締役 種村成徳"}]
[]
[null,"当月請求額",null,null,null,null,null,null,null,null,{"$f":"K22","v":0}]
[]
[]
[null,null,null,null,null,null,null,null,null,null,null,null,null,null,null,null,null,null,null,null,null,null,null,null,null,null,null,null,null,{"$f":"IF(AD25=\"\",\"\",AD25)","v":"例：025-779-2311"}]
[null,{"$f":"B26","v":"消費税額(10%)"},null,null,null,null,null,null,null,null,{"$f":"K26","v":0}]
[]
[]
[]
[null,"今回請求額",null,null,null,null,null,null,null,null,{"$f":"K30","v":0},null,null,null,null,null,null,null,null,null,null,null,null,null,null,null,null,null,null,"取引銀行",null,null,null,null,null,{"$f":"IF(AJ30=\"\",\"\",AJ30)","v":"例：第四銀行"},null,null,null,null,null,null,null,null,null,{"$f":"IF(AT30=\"\",\"\",AT30)","v":"例：六日町支店"}]
[]
[]
[]
[null,null,null,null,null,null,null,null,null,null,null,null,null,null,null,null,null,null,null,null,null,null,null,null,null,null,null,null,null,"口座名義",null,null,null,null,null,{"$f":"IF(AJ34=\"\",\"\",AJ34)","v":"例：カ.タネムラケンセツ"}]
[null,"工事番号",null,null,null,null,null,"工事名",null,null,null,null,null,null,null,null,null,null,null,{"$f":"\"金額(\" & IF(税処理=2,\"税込み\",\"税抜き\")&\")\"","v":"金額(税抜き)"}]
[]
[]
[null,null,null,null,null,null,null,null,null,null,null,null,null,null,null,null,null,null,null,null,null,null,null,null,null,null,null,null,null,"口座番号",null,null,null,null,null,{"$f":"IF(AJ38=\"\",\"\",AJ38)","v":"２．当座"},null,null,null,null,null,null,null,null,null,{"$f":"IF(AT38=\"\",\"\",AT38)","v":"例：121813"}]
[null,{"$f":"IF(B39=\"\",\"\",B39)","v":""},null,null,null,null,null,{"$f":"IF(H39=\"\",\"\",H39)","v":""},null,null,null,null,null,null,null,null,null,null,null,{"$f":"IF(T39=\"\",\"\",T39)","v":""}]
[]
[]
[]
[null,{"$f":"IF(B43=\"\",\"\",B43)","v":""},null,null,null,null,null,{"$f":"IF(H43=\"\",\"\",H43)","v":""},null,null,null,null,null,null,null,null,null,null,null,{"$f":"IF(T43=\"\",\"\",T43)","v":""}]
[]
[]
[]
[null,{"$f":"IF(B47=\"\",\"\",B47)","v":""},null,null,null,null,null,{"$f":"IF(H47=\"\",\"\",H47)","v":""},null,null,null,null,null,null,null,null,null,null,null,{"$f":"IF(T47=\"\",\"\",T47)","v":""},null,null,null,null,null,null,null,null,null,"　　１．請求書の提出先及び提出期限\n　　　　　毎月末締め切りにて納品(施工)先へ翌月５日迄に必着の事。\n　　　　　提出期日を経過したものは、当該月の支払い対象となりません。\n\n　　２．記載上の注意\n　　　　　・３枚１組の請求明細書にもれなく記入の上、明細書２枚を\n　　　　　　請求書(正)に添付の上、提出してください。\n　　　　　・明細書には、現場名毎に記入し、その合計を請求書に集計し\n　　　　　　記入してください。\n　　　　　・材料等、物品の請求の場合は、現場毎に明細書が出力されれば\n　　　　　　自社の明細書で結構です。現場毎に出力されなければ、弊社\n　　　　　　明細書を利用するか、自社明細書を工夫してください。\n　　　　　　この場合も、明細書は２枚提出が必要です。\n　　　　　・記入に際して不明の点は、施工(納品)先の当社係員と打合せ\n　　　　　　の上、ご記入下さい。\n　　　\n　　３．請求書は、弊社ホームページよりダウンロードして下さい。"]
[]
[]
[]
[null,{"$f":"IF(B51=\"\",\"\",B51)","v":""},null,null,null,null,null,{"$f":"IF(H51=\"\",\"\",H51)","v":""},null,null,null,null,null,null,null,null,null,null,null,{"$f":"IF(T51=\"\",\"\",T51)","v":""}]
[]
[]
[]
[null,{"$f":"IF(B55=\"\",\"\",B55)","v":""},null,null,null,null,null,{"$f":"IF(H55=\"\",\"\",H55)","v":""},null,null,null,null,null,null,null,null,null,null,null,{"$f":"IF(T55=\"\",\"\",T55)","v":""}]
[]
[]
[]
[null,{"$f":"IF(B59=\"\",\"\",B59)","v":""},null,null,null,null,null,{"$f":"IF(H59=\"\",\"\",H59)","v":""},null,null,null,null,null,null,null,null,null,null,null,{"$f":"IF(T59=\"\",\"\",T59)","v":""}]
[]
[]
[]
[null,{"$f":"IF(B63=\"\",\"\",B63)","v":""},null,null,null,null,null,{"$f":"IF(H63=\"\",\"\",H63)","v":""},null,null,null,null,null,null,null,null,null,null,null,{"$f":"IF(T63=\"\",\"\",T63)","v":""}]
[]
[]
[]
[null,{"$f":"IF(B67=\"\",\"\",B67)","v":""},null,null,null,null,null,{"$f":"IF(H67=\"\",\"\",H67)","v":""},null,null,null,null,null,null,null,null,null,null,null,{"$f":"IF(T67=\"\",\"\",T67)","v":""}]
[]
[]
[]
[null,{"$f":"IF(B71=\"\",\"\",B71)","v":""},null,null,null,null,null,{"$f":"IF(H71=\"\",\"\",H71)","v":""},null,null,null,null,null,null,null,null,null,null,null,{"$f":"IF(T71=\"\",\"\",T71)","v":""}]
[]
[]
[]
[null,{"$f":"IF(B75=\"\",\"\",B75)","v":""},null,null,null,null,null,{"$f":"IF(H75=\"\",\"\",H75)","v":""},null,null,null,null,null,null,null,null,null,null,null,{"$f":"IF(T75=\"\",\"\",T75)","v":""}]
[]
[]
[]
[null,{"$f":"IF(B79=\"\",\"\",B79)","v":""},null,null,null,null,null,{"$f":"IF(H79=\"\",\"\",H79)","v":""},null,null,null,null,null,null,null,null,null,null,null,{"$f":"IF(T79=\"\",\"\",T79)","v":""}]
[]
[]
[]
[null,{"$f":"IF(B83=\"\",\"\",B83)","v":""},null,null,null,null,null,{"$f":"IF(H83=\"\",\"\",H83)","v":""},null,null,null,null,null,null,null,null,null,null,null,{"$f":"IF(T83=\"\",\"\",T83)","v":""}]
[]
[]
[]
[null,"合　　　　　計",null,null,null,null,null,null,null,null,null,null,null,null,null,null,null,null,null,{"$f":"T87","v":0}]

{"sheet":"単独表紙②","index":2,"n_rows":179,"n_cols":54,"rows_kept":179,"cut":false,"hidden":false,"merged":[[4,40,6,44],[4,45,6,48],[96,40,98,44],[96,45,98,48],[0,53,1,54],[82,19,85,27],[45,29,89,54],[4,52,6,54],[25,10,28,23],[29,10,32,23],[29,29,32,34],[3,1,6,11],[8,1,9,10],[8,29,9,54],[2,19,5,32],[3,12,6,13],[4,49,6,51],[42,29,44,54],[34,7,37,18],[38,1,41,6],[38,7,41,18],[33,35,36,54],[37,35,40,44],[37,45,40,54],[37,29,40,34],[33,29,36,34],[58,19,61,27],[29,35,32,44],[29,45,32,54],[12,1,15,9],[17,1,20,9],[21,1,24,9],[25,1,28,9],[12,10,15,23],[17,10,20,23],[21,10,24,23],[29,1,32,9],[11,29,14,54],[15,29,18,54],[19,29,23,54],[24,29,27,54],[58,1,61,6],[58,7,61,18],[34,19,37,27],[38,19,41,27],[42,19,45,27],[46,19,49,27],[50,19,53,27],[54,19,57,27],[50,1,53,6],[50,7,53,18],[54,1,57,6],[54,7,57,18],[42,1,45,6],[42,7,45,18],[46,1,49,6],[46,7,49,18],[34,1,37,6],[116,29,119,54],[94,19,97,32],[95,1,98,11],[95,12,98,13],[96,49,98,51],[100,29,101,54],[104,1,107,9],[103,29,106,54],[107,29,110,54],[96,52,98,54],[111,29,115,54],[117,1,120,9],[117,10,120,23],[113,1,116,9],[113,10,116,23],[82,1,85,6],[109,1,112,9],[109,10,112,23],[62,19,65,27],[82,7,85,18],[86,19,89,27],[86,1,89,18],[104,10,107,23],[62,1,65,6],[62,7,65,18],[66,1,69,6],[66,7,69,18],[70,1,73,6],[70,7,73,18],[130,1,133,6],[130,7,133,18],[121,1,124,9],[121,10,124,23],[126,19,129,27],[74,19,77,27],[78,19,81,27],[70,19,73,27],[78,1,81,6],[78,7,81,18],[74,1,77,6],[100,1,101,10],[66,19,69,27],[74,7,77,18],[126,7,129,18],[129,35,132,44],[129,45,132,54],[121,35,124,44],[121,45,124,54],[170,19,173,27],[170,7,173,18],[146,7,149,18],[146,19,149,27],[162,1,165,6],[162,7,165,18],[162,19,165,27],[166,1,169,6],[142,1,145,6],[142,7,145,18],[142,19,145,27],[158,1,161,6],[158,7,161,18],[158,19,161,27],[150,1,153,6],[150,7,153,18],[150,19,153,27],[154,7,157,18],[154,19,157,27],[146,1,149,6],[90,51,91,54],[178,1,181,18],[178,19,181,27],[138,29,181,54],[174,1,177,6],[174,7,177,18],[174,19,177,27],[166,7,169,18],[166,19,169,27],[154,1,157,6],[170,1,173,6],[134,29,136,54],[138,1,141,6],[138,7,141,18],[138,19,141,27],[134,1,137,6],[121,29,124,34],[134,7,137,18],[134,19,137,27],[130,19,133,27],[126,1,129,6],[129,29,132,34],[125,29,128,34],[125,35,128,54]]}
[null,null,null,null,null,null,null,null,null,null,null,null,null,null,null,null,null,null,null,null,null,null,null,null,null,null,null,null,null,null,null,null,null,null,null,null,null,null,null,null,null,null,null,null,null,null,null,null,null,null,null,null,null,{"$f":"\"\"&IF(小計4>0,\"2/4\",IF(小計3>0,\"2/3\",\"\"))&\"\"","v":""}]
[]
[null,null,null,null,null,null,null,null,null,null,null,null,null,null,null,null,null,null,null,"請　求　書 (正)"]
[null,"株 式 会 社 種 村 建 設",null,null,null,null,null,null,null,null,null,null,"御中"]
[null,null,null,null,null,null,null,null,null,null,null,null,null,null,null,null,null,null,null,null,null,null,null,null,null,null,null,null,null,null,null,null,null,null,null,null,null,null,null,null,"請求年月日",null,null,null,null,{"$f":"年","v":0},null,null,null,{"$f":"月","v":0},null,null,{"$f":"日","v":0}]
[]
[]
[]
[null,"下記の通りご請求します。",null,null,null,null,null,null,null,null,null,null,null,null,null,null,null,null,null,null,null,null,null,null,null,null,null,null,null,"住所･社名･電話"]
[]
[null,null,null,null,null,null,null,null,null,null,null,null,null,null,null,null,null,null,null,null,null,null,null,null,null,null,null,null,null,"\n\n　　　　　　　　　新潟県南魚沼市水尾４１７\n\n　　　　　　　　　株式会社 種 村 建 設\n\n　　　　　　　　　代表取締役　並 木 成 德"]
[null,null,null,null,null,null,null,null,null,null,null,null,null,null,null,null,null,null,null,null,null,null,null,null,null,null,null,null,null,{"$f":"住所","v":"例：新潟県南魚沼市水尾４１７"}]
[null,"請求金額"]
[]
[]
[null,null,null,null,null,null,null,null,null,null,null,null,null,null,null,null,null,null,null,null,null,null,null,null,null,null,null,null,null,{"$f":"社名","v":"例：(株)種村建設"}]
[]
[null,"前月繰越額"]
[]
[null,null,null,null,null,null,null,null,null,null,null,null,null,null,null,null,null,null,null,null,null,null,null,null,null,null,null,null,null,{"$f":"代表者","v":"例：代表取締役 種村成徳"}]
[]
[null,"当月請求額"]
[]
[]
[null,null,null,null,null,null,null,null,null,null,null,null,null,null,null,null,null,null,null,null,null,null,null,null,null,null,null,null,null,{"$f":"電話","v":"例：025-779-2311"}]
[null,{"$f":"\"消費税額(\" & 税率 & \"%)\"","v":"消費税額(10%)"}]
[]
[]
[]
[null,"今回請求額",null,null,null,null,null,null,null,null,null,null,null,null,null,null,null,null,null,null,null,null,null,null,null,null,null,null,null,"取引銀行",null,null,null,null,null,{"$f":"銀行名","v":"例：第四銀行"},null,null,null,null,null,null,null,null,null,{"$f":"支店名","v":"例：六日町支店"}]
[]
[]
[]
[null,null,null,null,null,null,null,null,null,null,null,null,null,null,null,null,null,null,null,null,null,null,null,null,null,null,null,null,null,"口座名義",null,null,null,null,null,{"$f":"口座名義","v":"例：カ.タネムラケンセツ"}]
[null,"工事番号",null,null,null,null,null,"工事名",null,null,null,null,null,null,null,null,null,null,null,{"$f":"\"金額(\" & IF(税処理=2,\"税込み\",\"税抜き\")&\")\"","v":"金額(税抜き)"}]
[]
[]
[null,null,null,null,null,null,null,null,null,null,null,null,null,null,null,null,null,null,null,null,null,null,null,null,null,null,null,null,null,"口座番号",null,null,null,null,null,{"$f":"口座種別","v":"２．当座"},null,null,null,null,null,null,null,null,null,{"$f":"口座番号","v":"例：121813"}]
[]
[]
[]
[]
[null,null,null,null,null,null,null,null,null,null,null,null,null,null,null,null,null,null,null,null,null,null,null,null,null,null,null,null,null,"備     考 ・ 通 信 欄"]
[]
[]
[]
[]
[]
[]
[]
[]
[]
[]
[]
[]
[]
[]
[]
[]
[]
[]
[]
[]
[]
[]
[]
[]
[]
[]
[]
[]
[]
[]
[]
[]
[]
[]
[]
[]
[]
[]
[]
[]
[]
[]
[]
[null,"合　　　　　計",null,null,null,null,null,null,null,null,null,null,null,null,null,null,null,null,null,{"$f":"SUM(T39:T83)","v":0}]
[]
[]
[]
[null,null,null,null,null,null,null,null,null,null,null,null,null,null,null,null,null,null,null,null,null,null,null,null,null,null,null,null,null,null,null,null,null,null,null,null,null,null,null,null,null,null,null,null,null,null,null,null,null,null,null,{"$f":"ﾊﾞｰｼﾞｮﾝ1","v":"Ver.2.8.5"}]
[]
[]
[]
[null,null,null,null,null,null,null,null,null,null,null,null,null,null,null,null,null,null,null,"請　求　書 (貴社控)"]
[null,"株 式 会 社 種 村 建 設",null,null,null,null,null,null,null,null,null,null,"御中"]
[null,null,null,null,null,null,null,null,null,null,null,null,null,null,null,null,null,null,null,null,null,null,null,null,null,null,null,null,null,null,null,null,null,null,null,null,null,null,null,null,"請求年月日",null,null,null,null,{"$f":"IF(AT5=\"\",\"\",AT5)","v":0},null,null,null,{"$f":"IF(AX5=\"\",\"\",AX5)","v":0},null,null,{"$f":"IF(BA5=\"\",\"\",BA5)","v":0}]
[]
[]
[]
[null,"下記の通りご請求します。",null,null,null,null,null,null,null,null,null,null,null,null,null,null,null,null,null,null,null,null,null,null,null,null,null,null,null,"住所･社名･電話"]
[]
[null,null,null,null,null,null,null,null,null,null,null,null,null,null,null,null,null,null,null,null,null,null,null,null,null,null,null,null,null,{"$f":"IF(AD11=\"\",\"\",AD11)","v":"\n\n　　　　　　　　　新潟県南魚沼市水尾４１７\n\n　　　　　　　　　株式会社 種 村 建 設\n\n　　　　　　　　　代表取締役　並 木 成 德"}]
[null,null,null,null,null,null,null,null,null,null,null,null,null,null,null,null,null,null,null,null,null,null,null,null,null,null,null,null,null,{"$f":"IF(AD12=\"\",\"\",AD12)","v":"例：新潟県南魚沼市水尾４１７"}]
[null,"請求金額",null,null,null,null,null,null,null,null,{"$f":"K13","v":0}]
[]
[]
[null,null,null,null,null,null,null,null,null,null,null,null,null,null,null,null,null,null,null,null,null,null,null,null,null,null,null,null,null,{"$f":"IF(AD16=\"\",\"\",AD16)","v":"例：(株)種村建設"}]
[]
[null,"前月繰越額",null,null,null,null,null,null,null,null,{"$f":"K18","v":0}]
[]
[null,null,null,null,null,null,null,null,null,null,null,null,null,null,null,null,null,null,null,null,null,null,null,null,null,null,null,null,null,{"$f":"IF(AD20=\"\",\"\",AD20)","v":"例：代表取締役 種村成徳"}]
[]
[null,"当月請求額",null,null,null,null,null,null,null,null,{"$f":"K22","v":0}]
[]
[]
[null,null,null,null,null,null,null,null,null,null,null,null,null,null,null,null,null,null,null,null,null,null,null,null,null,null,null,null,null,{"$f":"IF(AD25=\"\",\"\",AD25)","v":"例：025-779-2311"}]
[null,{"$f":"B26","v":"消費税額(10%)"},null,null,null,null,null,null,null,null,{"$f":"K26","v":0}]
[]
[]
[]
[null,"今回請求額",null,null,null,null,null,null,null,null,{"$f":"K30","v":0},null,null,null,null,null,null,null,null,null,null,null,null,null,null,null,null,null,null,"取引銀行",null,null,null,null,null,{"$f":"IF(AJ30=\"\",\"\",AJ30)","v":"例：第四銀行"},null,null,null,null,null,null,null,null,null,{"$f":"IF(AT30=\"\",\"\",AT30)","v":"例：六日町支店"}]
[]
[]
[]
[null,null,null,null,null,null,null,null,null,null,null,null,null,null,null,null,null,null,null,null,null,null,null,null,null,null,null,null,null,"口座名義",null,null,null,null,null,{"$f":"IF(AJ34=\"\",\"\",AJ34)","v":"例：カ.タネムラケンセツ"}]
[null,"工事番号",null,null,null,null,null,"工事名",null,null,null,null,null,null,null,null,null,null,null,{"$f":"\"金額(\" & IF(税処理=2,\"税込み\",\"税抜き\")&\")\"","v":"金額(税抜き)"}]
[]
[]
[null,null,null,null,null,null,null,null,null,null,null,null,null,null,null,null,null,null,null,null,null,null,null,null,null,null,null,null,null,"口座番号",null,null,null,null,null,{"$f":"IF(AJ38=\"\",\"\",AJ38)","v":"２．当座"},null,null,null,null,null,null,null,null,null,{"$f":"IF(AT38=\"\",\"\",AT38)","v":"例：121813"}]
[null,{"$f":"IF(B39=\"\",\"\",B39)","v":""},null,null,null,null,null,{"$f":"IF(H39=\"\",\"\",H39)","v":""},null,null,null,null,null,null,null,null,null,null,null,{"$f":"IF(T39=\"\",\"\",T39)","v":""}]
[]
[]
[]
[null,{"$f":"IF(B43=\"\",\"\",B43)","v":""},null,null,null,null,null,{"$f":"IF(H43=\"\",\"\",H43)","v":""},null,null,null,null,null,null,null,null,null,null,null,{"$f":"IF(T43=\"\",\"\",T43)","v":""}]
[]
[]
[]
[null,{"$f":"IF(B47=\"\",\"\",B47)","v":""},null,null,null,null,null,{"$f":"IF(H47=\"\",\"\",H47)","v":""},null,null,null,null,null,null,null,null,null,null,null,{"$f":"IF(T47=\"\",\"\",T47)","v":""},null,null,null,null,null,null,null,null,null,"　　１．請求書の提出先及び提出期限\n　　　　　毎月末締め切りにて納品(施工)先へ翌月５日迄に必着の事。\n　　　　　提出期日を経過したものは、当該月の支払い対象となりません。\n\n　　２．記載上の注意\n　　　　　・３枚１組の請求明細書にもれなく記入の上、明細書２枚を\n　　　　　　請求書(正)に添付の上、提出してください。\n　　　　　・明細書には、現場名毎に記入し、その合計を請求書に集計し\n　　　　　　記入してください。\n　　　　　・材料等、物品の請求の場合は、現場毎に明細書が出力されれば\n　　　　　　自社の明細書で結構です。現場毎に出力されなければ、弊社\n　　　　　　明細書を利用するか、自社明細書を工夫してください。\n　　　　　　この場合も、明細書は２枚提出が必要です。\n　　　　　・記入に際して不明の点は、施工(納品)先の当社係員と打合せ\n　　　　　　の上、ご記入下さい。\n　　　\n　　３．請求書は、弊社ホームページよりダウンロードして下さい。"]
[]
[]
[]
[null,{"$f":"IF(B51=\"\",\"\",B51)","v":""},null,null,null,null,null,{"$f":"IF(H51=\"\",\"\",H51)","v":""},null,null,null,null,null,null,null,null,null,null,null,{"$f":"IF(T51=\"\",\"\",T51)","v":""}]
[]
[]
[]
[null,{"$f":"IF(B55=\"\",\"\",B55)","v":""},null,null,null,null,null,{"$f":"IF(H55=\"\",\"\",H55)","v":""},null,null,null,null,null,null,null,null,null,null,null,{"$f":"IF(T55=\"\",\"\",T55)","v":""}]
[]
[]
[]
[null,{"$f":"IF(B59=\"\",\"\",B59)","v":""},null,null,null,null,null,{"$f":"IF(H59=\"\",\"\",H59)","v":""},null,null,null,null,null,null,null,null,null,null,null,{"$f":"IF(T59=\"\",\"\",T59)","v":""}]
[]
[]
[]
[null,{"$f":"IF(B63=\"\",\"\",B63)","v":""},null,null,null,null,null,{"$f":"IF(H63=\"\",\"\",H63)","v":""},null,null,null,null,null,null,null,null,null,null,null,{"$f":"IF(T63=\"\",\"\",T63)","v":""}]
[]
[]
[]
[null,{"$f":"IF(B67=\"\",\"\",B67)","v":""},null,null,null,null,null,{"$f":"IF(H67=\"\",\"\",H67)","v":""},null,null,null,null,null,null,null,null,null,null,null,{"$f":"IF(T67=\"\",\"\",T67)","v":""}]
[]
[]
[]
[null,{"$f":"IF(B71=\"\",\"\",B71)","v":""},null,null,null,null,null,{"$f":"IF(H71=\"\",\"\",H71)","v":""},null,null,null,null,null,null,null,null,null,null,null,{"$f":"IF(T71=\"\",\"\",T71)","v":""}]
[]
[]
[]
[null,{"$f":"IF(B75=\"\",\"\",B75)","v":""},null,null,null,null,null,{"$f":"IF(H75=\"\",\"\",H75)","v":""},null,null,null,null,null,null,null,null,null,null,null,{"$f":"IF(T75=\"\",\"\",T75)","v":""}]
[]
[]
[]
[null,{"$f":"IF(B79=\"\",\"\",B79)","v":""},null,null,null,null,null,{"$f":"IF(H79=\"\",\"\",H79)","v":""},null,null,null,null,null,null,null,null,null,null,null,{"$f":"IF(T79=\"\",\"\",T79)","v":""}]
[]
[]
[]
[null,{"$f":"IF(B83=\"\",\"\",B83)","v":""},null,null,null,null,null,{"$f":"IF(H83=\"\",\"\",H83)","v":""},null,null,null,null,null,null,null,null,null,null,null,{"$f":"IF(T83=\"\",\"\",T83)","v":""}]
[]
[]
[]
[null,"合　　　　　計",null,null,null,null,null,null,null,null,null,null,null,null,null,null,null,null,null,{"$f":"T87","v":0}]

{"sheet":"単独表紙③","index":3,"n_rows":179,"n_cols":54,"rows_kept":179,"cut":false,"hidden":false,"merged":[[4,40,6,44],[4,45,6,48],[96,40,98,44],[96,45,98,48],[178,1,181,18],[178,19,181,27],[138,29,181,54],[174,1,177,6],[174,7,177,18],[174,19,177,27],[166,7,169,18],[166,19,169,27],[154,1,157,6],[170,1,173,6],[158,7,161,18],[158,19,161,27],[150,1,153,6],[150,7,153,18],[150,19,153,27],[154,7,157,18],[11,29,14,54],[15,29,18,54],[19,29,23,54],[24,29,27,54],[170,7,173,18],[170,19,173,27],[162,1,165,6],[162,7,165,18],[162,19,165,27],[90,51,91,54],[154,19,157,27],[146,1,149,6],[146,7,149,18],[146,19,149,27],[166,1,169,6],[134,29,136,54],[138,1,141,6],[138,7,141,18],[138,19,141,27],[134,1,137,6],[142,1,145,6],[142,7,145,18],[142,19,145,27],[158,1,161,6],[134,7,137,18],[134,19,137,27],[125,29,128,34],[125,35,128,54],[129,35,132,44],[129,45,132,54],[130,19,133,27],[126,19,129,27],[121,10,124,23],[121,29,124,34],[121,35,124,44],[121,45,124,54],[113,1,116,9],[113,10,116,23],[129,29,132,34],[126,1,129,6],[126,7,129,18],[130,1,133,6],[130,7,133,18],[121,1,124,9],[116,29,119,54],[117,1,120,9],[117,10,120,23],[96,52,98,54],[100,1,101,10],[109,10,112,23],[109,1,112,9],[54,1,57,6],[54,7,57,18],[54,19,57,27],[86,1,89,18],[58,19,61,27],[111,29,115,54],[94,19,97,32],[95,1,98,11],[95,12,98,13],[96,49,98,51],[66,19,69,27],[70,19,73,27],[74,1,77,6],[74,7,77,18],[100,29,101,54],[104,1,107,9],[104,10,107,23],[103,29,106,54],[107,29,110,54],[62,19,65,27],[82,7,85,18],[86,19,89,27],[58,1,61,6],[58,7,61,18],[78,1,81,6],[78,7,81,18],[62,1,65,6],[62,7,65,18],[74,19,77,27],[78,19,81,27],[66,1,69,6],[66,7,69,18],[70,1,73,6],[70,7,73,18],[82,1,85,6],[17,1,20,9],[21,1,24,9],[25,1,28,9],[46,1,49,6],[46,7,49,18],[50,1,53,6],[21,10,24,23],[29,1,32,9],[34,19,37,27],[50,7,53,18],[34,1,37,6],[34,7,37,18],[38,1,41,6],[38,7,41,18],[42,1,45,6],[42,7,45,18],[38,19,41,27],[42,19,45,27],[46,19,49,27],[50,19,53,27],[29,35,32,44],[29,45,32,54],[0,53,1,54],[82,19,85,27],[45,29,89,54],[4,52,6,54],[25,10,28,23],[29,10,32,23],[29,29,32,34],[33,29,36,34],[37,29,40,34],[42,29,44,54],[3,1,6,11],[8,1,9,10],[8,29,9,54],[2,19,5,32],[3,12,6,13],[4,49,6,51],[33,35,36,54],[37,35,40,44],[37,45,40,54],[12,10,15,23],[17,10,20,23],[12,1,15,9]]}
[null,null,null,null,null,null,null,null,null,null,null,null,null,null,null,null,null,null,null,null,null,null,null,null,null,null,null,null,null,null,null,null,null,null,null,null,null,null,null,null,null,null,null,null,null,null,null,null,null,null,null,null,null,{"$f":"\"\"&IF(小計4>0,\"3/4\",IF(小計3>0,\"3/3\",\"\"))&\"\"","v":""}]
[]
[null,null,null,null,null,null,null,null,null,null,null,null,null,null,null,null,null,null,null,"請　求　書 (正)"]
[null,"株 式 会 社 種 村 建 設",null,null,null,null,null,null,null,null,null,null,"御中"]
[null,null,null,null,null,null,null,null,null,null,null,null,null,null,null,null,null,null,null,null,null,null,null,null,null,null,null,null,null,null,null,null,null,null,null,null,null,null,null,null,"請求年月日",null,null,null,null,{"$f":"年","v":0},null,null,null,{"$f":"月","v":0},null,null,{"$f":"日","v":0}]
[]
[]
[]
[null,"下記の通りご請求します。",null,null,null,null,null,null,null,null,null,null,null,null,null,null,null,null,null,null,null,null,null,null,null,null,null,null,null,"住所･社名･電話"]
[]
[null,null,null,null,null,null,null,null,null,null,null,null,null,null,null,null,null,null,null,null,null,null,null,null,null,null,null,null,null,"\n\n　　　　　　　　　新潟県南魚沼市水尾４１７\n\n　　　　　　　　　株式会社 種 村 建 設\n\n　　　　　　　　　代表取締役　並 木 成 德"]
[null,null,null,null,null,null,null,null,null,null,null,null,null,null,null,null,null,null,null,null,null,null,null,null,null,null,null,null,null,{"$f":"住所","v":"例：新潟県南魚沼市水尾４１７"}]
[null,"請求金額"]
[]
[]
[null,null,null,null,null,null,null,null,null,null,null,null,null,null,null,null,null,null,null,null,null,null,null,null,null,null,null,null,null,{"$f":"社名","v":"例：(株)種村建設"}]
[]
[null,"前月繰越額"]
[]
[null,null,null,null,null,null,null,null,null,null,null,null,null,null,null,null,null,null,null,null,null,null,null,null,null,null,null,null,null,{"$f":"代表者","v":"例：代表取締役 種村成徳"}]
[]
[null,"当月請求額"]
[]
[]
[null,null,null,null,null,null,null,null,null,null,null,null,null,null,null,null,null,null,null,null,null,null,null,null,null,null,null,null,null,{"$f":"電話","v":"例：025-779-2311"}]
[null,{"$f":"\"消費税額(\" & 税率 & \"%)\"","v":"消費税額(10%)"}]
[]
[]
[]
[null,"今回請求額",null,null,null,null,null,null,null,null,null,null,null,null,null,null,null,null,null,null,null,null,null,null,null,null,null,null,null,"取引銀行",null,null,null,null,null,{"$f":"銀行名","v":"例：第四銀行"},null,null,null,null,null,null,null,null,null,{"$f":"支店名","v":"例：六日町支店"}]
[]
[]
[]
[null,null,null,null,null,null,null,null,null,null,null,null,null,null,null,null,null,null,null,null,null,null,null,null,null,null,null,null,null,"口座名義",null,null,null,null,null,{"$f":"口座名義","v":"例：カ.タネムラケンセツ"}]
[null,"工事番号",null,null,null,null,null,"工事名",null,null,null,null,null,null,null,null,null,null,null,{"$f":"\"金額(\" & IF(税処理=2,\"税込み\",\"税抜き\")&\")\"","v":"金額(税抜き)"}]
[]
[]
[null,null,null,null,null,null,null,null,null,null,null,null,null,null,null,null,null,null,null,null,null,null,null,null,null,null,null,null,null,"口座番号",null,null,null,null,null,{"$f":"口座種別","v":"２．当座"},null,null,null,null,null,null,null,null,null,{"$f":"口座番号","v":"例：121813"}]
[]
[]
[]
[]
[null,null,null,null,null,null,null,null,null,null,null,null,null,null,null,null,null,null,null,null,null,null,null,null,null,null,null,null,null,"備     考 ・ 通 信 欄"]
[]
[]
[]
[]
[]
[]
[]
[]
[]
[]
[]
[]
[]
[]
[]
[]
[]
[]
[]
[]
[]
[]
[]
[]
[]
[]
[]
[]
[]
[]
[]
[]
[]
[]
[]
[]
[]
[]
[]
[]
[]
[]
[]
[null,"合　　　　　計",null,null,null,null,null,null,null,null,null,null,null,null,null,null,null,null,null,{"$f":"SUM(T39:T83)","v":0}]
[]
[]
[]
[null,null,null,null,null,null,null,null,null,null,null,null,null,null,null,null,null,null,null,null,null,null,null,null,null,null,null,null,null,null,null,null,null,null,null,null,null,null,null,null,null,null,null,null,null,null,null,null,null,null,null,{"$f":"ﾊﾞｰｼﾞｮﾝ1","v":"Ver.2.8.5"}]
[]
[]
[]
[null,null,null,null,null,null,null,null,null,null,null,null,null,null,null,null,null,null,null,"請　求　書 (貴社控)"]
[null,"株 式 会 社 種 村 建 設",null,null,null,null,null,null,null,null,null,null,"御中"]
[null,null,null,null,null,null,null,null,null,null,null,null,null,null,null,null,null,null,null,null,null,null,null,null,null,null,null,null,null,null,null,null,null,null,null,null,null,null,null,null,"請求年月日",null,null,null,null,{"$f":"IF(AT5=\"\",\"\",AT5)","v":0},null,null,null,{"$f":"IF(AX5=\"\",\"\",AX5)","v":0},null,null,{"$f":"IF(BA5=\"\",\"\",BA5)","v":0}]
[]
[]
[]
[null,"下記の通りご請求します。",null,null,null,null,null,null,null,null,null,null,null,null,null,null,null,null,null,null,null,null,null,null,null,null,null,null,null,"住所･社名･電話"]
[]
[null,null,null,null,null,null,null,null,null,null,null,null,null,null,null,null,null,null,null,null,null,null,null,null,null,null,null,null,null,{"$f":"IF(AD11=\"\",\"\",AD11)","v":"\n\n　　　　　　　　　新潟県南魚沼市水尾４１７\n\n　　　　　　　　　株式会社 種 村 建 設\n\n　　　　　　　　　代表取締役　並 木 成 德"}]
[null,null,null,null,null,null,null,null,null,null,null,null,null,null,null,null,null,null,null,null,null,null,null,null,null,null,null,null,null,{"$f":"IF(AD12=\"\",\"\",AD12)","v":"例：新潟県南魚沼市水尾４１７"}]
[null,"請求金額",null,null,null,null,null,null,null,null,{"$f":"K13","v":0}]
[]
[]
[null,null,null,null,null,null,null,null,null,null,null,null,null,null,null,null,null,null,null,null,null,null,null,null,null,null,null,null,null,{"$f":"IF(AD16=\"\",\"\",AD16)","v":"例：(株)種村建設"}]
[]
[null,"前月繰越額",null,null,null,null,null,null,null,null,{"$f":"K18","v":0}]
[]
[null,null,null,null,null,null,null,null,null,null,null,null,null,null,null,null,null,null,null,null,null,null,null,null,null,null,null,null,null,{"$f":"IF(AD20=\"\",\"\",AD20)","v":"例：代表取締役 種村成徳"}]
[]
[null,"当月請求額",null,null,null,null,null,null,null,null,{"$f":"K22","v":0}]
[]
[]
[null,null,null,null,null,null,null,null,null,null,null,null,null,null,null,null,null,null,null,null,null,null,null,null,null,null,null,null,null,{"$f":"IF(AD25=\"\",\"\",AD25)","v":"例：025-779-2311"}]
[null,{"$f":"B26","v":"消費税額(10%)"},null,null,null,null,null,null,null,null,{"$f":"K26","v":0}]
[]
[]
[]
[null,"今回請求額",null,null,null,null,null,null,null,null,{"$f":"K30","v":0},null,null,null,null,null,null,null,null,null,null,null,null,null,null,null,null,null,null,"取引銀行",null,null,null,null,null,{"$f":"IF(AJ30=\"\",\"\",AJ30)","v":"例：第四銀行"},null,null,null,null,null,null,null,null,null,{"$f":"IF(AT30=\"\",\"\",AT30)","v":"例：六日町支店"}]
[]
[]
[]
[null,null,null,null,null,null,null,null,null,null,null,null,null,null,null,null,null,null,null,null,null,null,null,null,null,null,null,null,null,"口座名義",null,null,null,null,null,{"$f":"IF(AJ34=\"\",\"\",AJ34)","v":"例：カ.タネムラケンセツ"}]
[null,"工事番号",null,null,null,null,null,"工事名",null,null,null,null,null,null,null,null,null,null,null,{"$f":"\"金額(\" & IF(税処理=2,\"税込み\",\"税抜き\")&\")\"","v":"金額(税抜き)"}]
[]
[]
[null,null,null,null,null,null,null,null,null,null,null,null,null,null,null,null,null,null,null,null,null,null,null,null,null,null,null,null,null,"口座番号",null,null,null,null,null,{"$f":"IF(AJ38=\"\",\"\",AJ38)","v":"２．当座"},null,null,null,null,null,null,null,null,null,{"$f":"IF(AT38=\"\",\"\",AT38)","v":"例：121813"}]
[null,{"$f":"IF(B39=\"\",\"\",B39)","v":""},null,null,null,null,null,{"$f":"IF(H39=\"\",\"\",H39)","v":""},null,null,null,null,null,null,null,null,null,null,null,{"$f":"IF(T39=\"\",\"\",T39)","v":""}]
[]
[]
[]
[null,{"$f":"IF(B43=\"\",\"\",B43)","v":""},null,null,null,null,null,{"$f":"IF(H43=\"\",\"\",H43)","v":""},null,null,null,null,null,null,null,null,null,null,null,{"$f":"IF(T43=\"\",\"\",T43)","v":""}]
[]
[]
[]
[null,{"$f":"IF(B47=\"\",\"\",B47)","v":""},null,null,null,null,null,{"$f":"IF(H47=\"\",\"\",H47)","v":""},null,null,null,null,null,null,null,null,null,null,null,{"$f":"IF(T47=\"\",\"\",T47)","v":""},null,null,null,null,null,null,null,null,null,"　　１．請求書の提出先及び提出期限\n　　　　　毎月末締め切りにて納品(施工)先へ翌月５日迄に必着の事。\n　　　　　提出期日を経過したものは、当該月の支払い対象となりません。\n\n　　２．記載上の注意\n　　　　　・３枚１組の請求明細書にもれなく記入の上、明細書２枚を\n　　　　　　請求書(正)に添付の上、提出してください。\n　　　　　・明細書には、現場名毎に記入し、その合計を請求書に集計し\n　　　　　　記入してください。\n　　　　　・材料等、物品の請求の場合は、現場毎に明細書が出力されれば\n　　　　　　自社の明"]
[]
[]
[]
[null,{"$f":"IF(B51=\"\",\"\",B51)","v":""},null,null,null,null,null,{"$f":"IF(H51=\"\",\"\",H51)","v":""},null,null,null,null,null,null,null,null,null,null,null,{"$f":"IF(T51=\"\",\"\",T51)","v":""}]
[]
[]
[]
[null,{"$f":"IF(B55=\"\",\"\",B55)","v":""},null,null,null,null,null,{"$f":"IF(H55=\"\",\"\",H55)","v":""},null,null,null,null,null,null,null,null,null,null,null,{"$f":"IF(T55=\"\",\"\",T55)","v":""}]
[]
[]
[]
[null,{"$f":"IF(B59=\"\",\"\",B59)","v":""},null,null,null,null,null,{"$f":"IF(H59=\"\",\"\",H59)","v":""},null,null,null,null,null,null,null,null,null,null,null,{"$f":"IF(T59=\"\",\"\",T59)","v":""}]
[]
[]
[]
[null,{"$f":"IF(B63=\"\",\"\",B63)","v":""},null,null,null,null,null,{"$f":"IF(H63=\"\",\"\",H63)","v":""},null,null,null,null,null,null,null,null,null,null,null,{"$f":"IF(T63=\"\",\"\",T63)","v":""}]
[]
[]
[]
[null,{"$f":"IF(B67=\"\",\"\",B67)","v":""},null,null,null,null,null,{"$f":"IF(H67=\"\",\"\",H67)","v":""},null,null,null,null,null,null,null,null,null,null,null,{"$f":"IF(T67=\"\",\"\",T67)","v":""}]
[]
[]
[]
[null,{"$f":"IF(B71=\"\",\"\",B71)","v":""},null,null,null,null,null,{"$f":"IF(H71=\"\",\"\",H71)","v":""},null,null,null,null,null,null,null,null,null,null,null,{"$f":"IF(T71=\"\",\"\",T71)","v":""}]
[]
[]
[]
[null,{"$f":"IF(B75=\"\",\"\",B75)","v":""},null,null,null,null,null,{"$f":"IF(H75=\"\",\"\",H75)","v":""},null,null,null,null,null,null,null,null,null,null,null,{"$f":"IF(T75=\"\",\"\",T75)","v":""}]
[]
[]
[]
[null,{"$f":"IF(B79=\"\",\"\",B79)","v":""},null,null,null,null,null,{"$f":"IF(H79=\"\",\"\",H79)","v":""},null,null,null,null,null,null,null,null,null,null,null,{"$f":"IF(T79=\"\",\"\",T79)","v":""}]
[]
[]
[]
[null,{"$f":"IF(B83=\"\",\"\",B83)","v":""},null,null,null,null,null,{"$f":"IF(H83=\"\",\"\",H83)","v":""},null,null,null,null,null,null,null,null,null,null,null,{"$f":"IF(T83=\"\",\"\",T83)","v":""}]
[]
[]
[]
[null,"合　　　　　計",null,null,null,null,null,null,null,null,null,null,null,null,null,null,null,null,null,{"$f":"T87","v":0}]

{"sheet":"単独表紙④","index":4,"n_rows":179,"n_cols":54,"rows_kept":179,"cut":false,"hidden":false,"merged":[[4,40,6,44],[4,45,6,48],[96,40,98,44],[96,45,98,48],[0,53,1,54],[82,19,85,27],[45,29,89,54],[4,52,6,54],[25,10,28,23],[29,10,32,23],[29,29,32,34],[3,1,6,11],[8,1,9,10],[8,29,9,54],[2,19,5,32],[3,12,6,13],[4,49,6,51],[42,29,44,54],[34,7,37,18],[38,1,41,6],[38,7,41,18],[33,35,36,54],[37,35,40,44],[37,45,40,54],[37,29,40,34],[33,29,36,34],[58,19,61,27],[29,35,32,44],[29,45,32,54],[12,1,15,9],[17,1,20,9],[21,1,24,9],[25,1,28,9],[12,10,15,23],[17,10,20,23],[21,10,24,23],[29,1,32,9],[11,29,14,54],[15,29,18,54],[19,29,23,54],[24,29,27,54],[58,1,61,6],[58,7,61,18],[34,19,37,27],[38,19,41,27],[42,19,45,27],[46,19,49,27],[50,19,53,27],[54,19,57,27],[50,1,53,6],[50,7,53,18],[54,1,57,6],[54,7,57,18],[42,1,45,6],[42,7,45,18],[46,1,49,6],[46,7,49,18],[34,1,37,6],[116,29,119,54],[94,19,97,32],[95,1,98,11],[95,12,98,13],[96,49,98,51],[100,29,101,54],[104,1,107,9],[103,29,106,54],[107,29,110,54],[96,52,98,54],[111,29,115,54],[117,1,120,9],[117,10,120,23],[113,1,116,9],[113,10,116,23],[82,1,85,6],[109,1,112,9],[109,10,112,23],[62,19,65,27],[82,7,85,18],[86,19,89,27],[86,1,89,18],[104,10,107,23],[62,1,65,6],[62,7,65,18],[66,1,69,6],[66,7,69,18],[70,1,73,6],[70,7,73,18],[130,1,133,6],[130,7,133,18],[121,1,124,9],[121,10,124,23],[126,19,129,27],[74,19,77,27],[78,19,81,27],[70,19,73,27],[78,1,81,6],[78,7,81,18],[74,1,77,6],[100,1,101,10],[66,19,69,27],[74,7,77,18],[126,7,129,18],[129,35,132,44],[129,45,132,54],[121,35,124,44],[121,45,124,54],[170,19,173,27],[170,7,173,18],[146,7,149,18],[146,19,149,27],[162,1,165,6],[162,7,165,18],[162,19,165,27],[166,1,169,6],[142,1,145,6],[142,7,145,18],[142,19,145,27],[158,1,161,6],[158,7,161,18],[158,19,161,27],[150,1,153,6],[150,7,153,18],[150,19,153,27],[154,7,157,18],[154,19,157,27],[146,1,149,6],[90,51,91,54],[178,1,181,18],[178,19,181,27],[138,29,181,54],[174,1,177,6],[174,7,177,18],[174,19,177,27],[166,7,169,18],[166,19,169,27],[154,1,157,6],[170,1,173,6],[134,29,136,54],[138,1,141,6],[138,7,141,18],[138,19,141,27],[134,1,137,6],[121,29,124,34],[134,7,137,18],[134,19,137,27],[130,19,133,27],[126,1,129,6],[129,29,132,34],[125,29,128,34],[125,35,128,54]]}
[null,null,null,null,null,null,null,null,null,null,null,null,null,null,null,null,null,null,null,null,null,null,null,null,null,null,null,null,null,null,null,null,null,null,null,null,null,null,null,null,null,null,null,null,null,null,null,null,null,null,null,null,null,{"$f":"IF(小計4>0,\"4/4\",\"\")&\"\"","v":""}]
[]
[null,null,null,null,null,null,null,null,null,null,null,null,null,null,null,null,null,null,null,"請　求　書 (正)"]
[null,"株 式 会 社 種 村 建 設",null,null,null,null,null,null,null,null,null,null,"御中"]
[null,null,null,null,null,null,null,null,null,null,null,null,null,null,null,null,null,null,null,null,null,null,null,null,null,null,null,null,null,null,null,null,null,null,null,null,null,null,null,null,"請求年月日",null,null,null,null,{"$f":"年","v":0},null,null,null,{"$f":"月","v":0},null,null,{"$f":"日","v":0}]
[]
[]
[]
[null,"下記の通りご請求します。",null,null,null,null,null,null,null,null,null,null,null,null,null,null,null,null,null,null,null,null,null,null,null,null,null,null,null,"住所･社名･電話"]
[]
[null,null,null,null,null,null,null,null,null,null,null,null,null,null,null,null,null,null,null,null,null,null,null,null,null,null,null,null,null,"\n\n　　　　　　　　　新潟県南魚沼市水尾４１７\n\n　　　　　　　　　株式会社 種 村 建 設\n\n　　　　　　　　　代表取締役　並 木 成 德"]
[null,null,null,null,null,null,null,null,null,null,null,null,null,null,null,null,null,null,null,null,null,null,null,null,null,null,null,null,null,{"$f":"住所","v":"例：新潟県南魚沼市水尾４１７"}]
[null,"請求金額"]
[]
[]
[null,null,null,null,null,null,null,null,null,null,null,null,null,null,null,null,null,null,null,null,null,null,null,null,null,null,null,null,null,{"$f":"社名","v":"例：(株)種村建設"}]
[]
[null,"前月繰越額"]
[]
[null,null,null,null,null,null,null,null,null,null,null,null,null,null,null,null,null,null,null,null,null,null,null,null,null,null,null,null,null,{"$f":"代表者","v":"例：代表取締役 種村成徳"}]
[]
[null,"当月請求額"]
[]
[]
[null,null,null,null,null,null,null,null,null,null,null,null,null,null,null,null,null,null,null,null,null,null,null,null,null,null,null,null,null,{"$f":"電話","v":"例：025-779-2311"}]
[null,{"$f":"\"消費税額(\" & 税率 & \"%)\"","v":"消費税額(10%)"}]
[]
[]
[]
[null,"今回請求額",null,null,null,null,null,null,null,null,null,null,null,null,null,null,null,null,null,null,null,null,null,null,null,null,null,null,null,"取引銀行",null,null,null,null,null,{"$f":"銀行名","v":"例：第四銀行"},null,null,null,null,null,null,null,null,null,{"$f":"支店名","v":"例：六日町支店"}]
[]
[]
[]
[null,null,null,null,null,null,null,null,null,null,null,null,null,null,null,null,null,null,null,null,null,null,null,null,null,null,null,null,null,"口座名義",null,null,null,null,null,{"$f":"口座名義","v":"例：カ.タネムラケンセツ"}]
[null,"工事番号",null,null,null,null,null,"工事名",null,null,null,null,null,null,null,null,null,null,null,{"$f":"\"金額(\" & IF(税処理=2,\"税込み\",\"税抜き\")&\")\"","v":"金額(税抜き)"}]
[]
[]
[null,null,null,null,null,null,null,null,null,null,null,null,null,null,null,null,null,null,null,null,null,null,null,null,null,null,null,null,null,"口座番号",null,null,null,null,null,{"$f":"口座種別","v":"２．当座"},null,null,null,null,null,null,null,null,null,{"$f":"口座番号","v":"例：121813"}]
[]
[]
[]
[]
[null,null,null,null,null,null,null,null,null,null,null,null,null,null,null,null,null,null,null,null,null,null,null,null,null,null,null,null,null,"備     考 ・ 通 信 欄"]
[]
[]
[]
[]
[]
[]
[]
[]
[]
[]
[]
[]
[]
[]
[]
[]
[]
[]
[]
[]
[]
[]
[]
[]
[]
[]
[]
[]
[]
[]
[]
[]
[]
[]
[]
[]
[]
[]
[]
[]
[]
[]
[]
[null,"合　　　　　計",null,null,null,null,null,null,null,null,null,null,null,null,null,null,null,null,null,{"$f":"SUM(T39:T83)","v":0}]
[]
[]
[]
[null,null,null,null,null,null,null,null,null,null,null,null,null,null,null,null,null,null,null,null,null,null,null,null,null,null,null,null,null,null,null,null,null,null,null,null,null,null,null,null,null,null,null,null,null,null,null,null,null,null,null,{"$f":"ﾊﾞｰｼﾞｮﾝ1","v":"Ver.2.8.5"}]
[]
[]
[]
[null,null,null,null,null,null,null,null,null,null,null,null,null,null,null,null,null,null,null,"請　求　書 (貴社控)"]
[null,"株 式 会 社 種 村 建 設",null,null,null,null,null,null,null,null,null,null,"御中"]
[null,null,null,null,null,null,null,null,null,null,null,null,null,null,null,null,null,null,null,null,null,null,null,null,null,null,null,null,null,null,null,null,null,null,null,null,null,null,null,null,"請求年月日",null,null,null,null,{"$f":"IF(AT5=\"\",\"\",AT5)","v":0},null,null,null,{"$f":"IF(AX5=\"\",\"\",AX5)","v":0},null,null,{"$f":"IF(BA5=\"\",\"\",BA5)","v":0}]
[]
[]
[]
[null,"下記の通りご請求します。",null,null,null,null,null,null,null,null,null,null,null,null,null,null,null,null,null,null,null,null,null,null,null,null,null,null,null,"住所･社名･電話"]
[]
[null,null,null,null,null,null,null,null,null,null,null,null,null,null,null,null,null,null,null,null,null,null,null,null,null,null,null,null,null,{"$f":"IF(AD11=\"\",\"\",AD11)","v":"\n\n　　　　　　　　　新潟県南魚沼市水尾４１７\n\n　　　　　　　　　株式会社 種 村 建 設\n\n　　　　　　　　　代表取締役　並 木 成 德"}]
[null,null,null,null,null,null,null,null,null,null,null,null,null,null,null,null,null,null,null,null,null,null,null,null,null,null,null,null,null,{"$f":"IF(AD12=\"\",\"\",AD12)","v":"例：新潟県南魚沼市水尾４１７"}]
[null,"請求金額",null,null,null,null,null,null,null,null,{"$f":"K13","v":0}]
[]
[]
[null,null,null,null,null,null,null,null,null,null,null,null,null,null,null,null,null,null,null,null,null,null,null,null,null,null,null,null,null,{"$f":"IF(AD16=\"\",\"\",AD16)","v":"例：(株)種村建設"}]
[]
[null,"前月繰越額",null,null,null,null,null,null,null,null,{"$f":"K18","v":0}]
[]
[null,null,null,null,null,null,null,null,null,null,null,null,null,null,null,null,null,null,null,null,null,null,null,null,null,null,null,null,null,{"$f":"IF(AD20=\"\",\"\",AD20)","v":"例：代表取締役 種村成徳"}]
[]
[null,"当月請求額",null,null,null,null,null,null,null,null,{"$f":"K22","v":0}]
[]
[]
[null,null,null,null,null,null,null,null,null,null,null,null,null,null,null,null,null,null,null,null,null,null,null,null,null,null,null,null,null,{"$f":"IF(AD25=\"\",\"\",AD25)","v":"例：025-779-2311"}]
[null,{"$f":"B26","v":"消費税額(10%)"},null,null,null,null,null,null,null,null,{"$f":"K26","v":0}]
[]
[]
[]
[null,"今回請求額",null,null,null,null,null,null,null,null,{"$f":"K30","v":0},null,null,null,null,null,null,null,null,null,null,null,null,null,null,null,null,null,null,"取引銀行",null,null,null,null,null,{"$f":"IF(AJ30=\"\",\"\",AJ30)","v":"例：第四銀行"},null,null,null,null,null,null,null,null,null,{"$f":"IF(AT30=\"\",\"\",AT30)","v":"例：六日町支店"}]
[]
[]
[]
[null,null,null,null,null,null,null,null,null,null,null,null,null,null,null,null,null,null,null,null,null,null,null,null,null,null,null,null,null,"口座名義",null,null,null,null,null,{"$f":"IF(AJ34=\"\",\"\",AJ34)","v":"例：カ.タネムラケンセツ"}]
[null,"工事番号",null,null,null,null,null,"工事名",null,null,null,null,null,null,null,null,null,null,null,{"$f":"\"金額(\" & IF(税処理=2,\"税込み\",\"税抜き\")&\")\"","v":"金額(税抜き)"}]
[]
[]
[null,null,null,null,null,null,null,null,null,null,null,null,null,null,null,null,null,null,null,null,null,null,null,null,null,null,null,null,null,"口座番号",null,null,null,null,null,{"$f":"IF(AJ38=\"\",\"\",AJ38)","v":"２．当座"},null,null,null,null,null,null,null,null,null,{"$f":"IF(AT38=\"\",\"\",AT38)","v":"例：121813"}]
[null,{"$f":"IF(B39=\"\",\"\",B39)","v":""},null,null,null,null,null,{"$f":"IF(H39=\"\",\"\",H39)","v":""},null,null,null,null,null,null,null,null,null,null,null,{"$f":"IF(T39=\"\",\"\",T39)","v":""}]
[]
[]
[]
[null,{"$f":"IF(B43=\"\",\"\",B43)","v":""},null,null,null,null,null,{"$f":"IF(H43=\"\",\"\",H43)","v":""},null,null,null,null,null,null,null,null,null,null,null,{"$f":"IF(T43=\"\",\"\",T43)","v":""}]
[]
[]
[]
[null,{"$f":"IF(B47=\"\",\"\",B47)","v":""},null,null,null,null,null,{"$f":"IF(H47=\"\",\"\",H47)","v":""},null,null,null,null,null,null,null,null,null,null,null,{"$f":"IF(T47=\"\",\"\",T47)","v":""},null,null,null,null,null,null,null,null,null,"　　１．請求書の提出先及び提出期限\n　　　　　毎月末締め切りにて納品(施工)先へ翌月５日迄に必着の事。\n　　　　　提出期日を経過したものは、当該月の支払い対象となりません。\n\n　　２．記載上の注意\n　　　　　・３枚１組の請求明細書にもれなく記入の上、明細書２枚を\n　　　　　　請求書(正)に添付の上、提出してください。\n　　　　　・明細書には、現場名毎に記入し、その合計を請求書に集計し\n　　　　　　記入してください。\n　　　　　・材料等、物品の請求の場合は、現場毎に明細書が出力されれば\n　　　　　　自社の明"]
[]
[]
[]
[null,{"$f":"IF(B51=\"\",\"\",B51)","v":""},null,null,null,null,null,{"$f":"IF(H51=\"\",\"\",H51)","v":""},null,null,null,null,null,null,null,null,null,null,null,{"$f":"IF(T51=\"\",\"\",T51)","v":""}]
[]
[]
[]
[null,{"$f":"IF(B55=\"\",\"\",B55)","v":""},null,null,null,null,null,{"$f":"IF(H55=\"\",\"\",H55)","v":""},null,null,null,null,null,null,null,null,null,null,null,{"$f":"IF(T55=\"\",\"\",T55)","v":""}]
[]
[]
[]
[null,{"$f":"IF(B59=\"\",\"\",B59)","v":""},null,null,null,null,null,{"$f":"IF(H59=\"\",\"\",H59)","v":""},null,null,null,null,null,null,null,null,null,null,null,{"$f":"IF(T59=\"\",\"\",T59)","v":""}]
[]
[]
[]
[null,{"$f":"IF(B63=\"\",\"\",B63)","v":""},null,null,null,null,null,{"$f":"IF(H63=\"\",\"\",H63)","v":""},null,null,null,null,null,null,null,null,null,null,null,{"$f":"IF(T63=\"\",\"\",T63)","v":""}]
[]
[]
[]
[null,{"$f":"IF(B67=\"\",\"\",B67)","v":""},null,null,null,null,null,{"$f":"IF(H67=\"\",\"\",H67)","v":""},null,null,null,null,null,null,null,null,null,null,null,{"$f":"IF(T67=\"\",\"\",T67)","v":""}]
[]
[]
[]
[null,{"$f":"IF(B71=\"\",\"\",B71)","v":""},null,null,null,null,null,{"$f":"IF(H71=\"\",\"\",H71)","v":""},null,null,null,null,null,null,null,null,null,null,null,{"$f":"IF(T71=\"\",\"\",T71)","v":""}]
[]
[]
[]
[null,{"$f":"IF(B75=\"\",\"\",B75)","v":""},null,null,null,null,null,{"$f":"IF(H75=\"\",\"\",H75)","v":""},null,null,null,null,null,null,null,null,null,null,null,{"$f":"IF(T75=\"\",\"\",T75)","v":""}]
[]
[]
[]
[null,{"$f":"IF(B79=\"\",\"\",B79)","v":""},null,null,null,null,null,{"$f":"IF(H79=\"\",\"\",H79)","v":""},null,null,null,null,null,null,null,null,null,null,null,{"$f":"IF(T79=\"\",\"\",T79)","v":""}]
[]
[]
[]
[null,{"$f":"IF(B83=\"\",\"\",B83)","v":""},null,null,null,null,null,{"$f":"IF(H83=\"\",\"\",H83)","v":""},null,null,null,null,null,null,null,null,null,null,null,{"$f":"IF(T83=\"\",\"\",T83)","v":""}]
[]
[]
[]
[null,"合　　　　　計",null,null,null,null,null,null,null,null,null,null,null,null,null,null,null,null,null,{"$f":"T87","v":0}]